bitfinex/quotes_ETHUSD_20240917
["timestamp","ask_amount","ask_price","bid_price","bid_amount"]
[1726593032885,4.21338,2373.4,2373.1,0.07029493]
[1726593033319,4.21338,2373.4,2373.0,3.99044949]
[1726593033489,4.21338,2373.4,2373.2,0.07024766]
[1726593033687,5.2981,2373.4,2373.0,3.99044949]
[1726593033975,4.21383,2373.2,2373.1,0.07029493]
[1726593034202,4.21355,2373.3,2373.1,0.07029493]
[1726593034432,8.42722,2373.3,2372.7,4.21449]
[1726593034714,4.743377,2373.3,2372.7,4.21449]
[1726593034892,4.743377,2373.3,2372.8,4.28494666]
[1726593035788,8.957027,2373.3,2372.8,4.28494666]
[1726593035996,4.21331,2373.5,2372.8,4.28494666]
[1726593036198,4.21337,2373.4,2372.8,9.20357565]
[1726593037083,4.21328,2373.5,2372.8,9.20357565]
[1726593037321,4.21348,2373.4,2372.8,10.37229322]
[1726593037687,4.21328,2373.5,2372.8,10.37229322]
[1726593037688,8.42658,2373.5,2372.8,10.37229322]
[1726593037888,4.21339,2373.4,2372.8,10.37229322]
[1726593038329,2.4207,2373.6,2372.9,2.3903]
[1726593038584,4.21294,2373.7,2372.9,2.3903]
[1726593038814,4.21313,2373.6,2373.0,0.92526044]
[1726593038988,2.2995,2373.5,2372.6,2.4747]
[1726593039195,2.2995,2373.5,2371.2,12.55]
[1726593039196,2.2995,2372.0,2371.2,2.4747]
[1726593039417,4.21547,2372.3,2371.1,0.0397543]
[1726593039418,4.21481,2372.6,2371.6,2.4747]
[1726593039630,2.2995,2372.8,2372.1,4.21557]
[1726593039780,3.0,2373.0,2371.8,2.4747]
[1726593039781,4.21426,2372.9,2371.8,2.4747]
[1726593040120,4.21497,2372.5,2371.8,2.4747]
[1726593040332,4.21544,2372.3,2371.9,0.04882852]
[1726593040532,4.21543,2372.3,2371.9,0.04882852]
[1726593040824,2.2995,2372.4,2371.4,6.70761]
[1726593040825,8.43152,2372.1,2371.4,6.70761]
[1726593041030,4.21569,2372.1,2372.0,0.04878121]
[1726593041195,4.21587,2372.0,2371.4,2.4907]
[1726593041384,7.2155,2372.2,2371.4,3.161484]
[1726593041385,4.21639,2371.7,2371.4,3.161484]
[1726593041581,4.21639,2371.7,2371.1,2.5304543]
[1726593041582,4.21674,2371.5,2371.1,2.5304543]
[1726593042029,4.21648,2371.7,2371.1,2.5304543]
[1726593042184,4.21693,2371.4,2371.1,2.5304543]
[1726593042385,8.43326,2371.6,2371.1,2.5304543]
[1726593042610,4.21661,2371.6,2371.1,2.5304543]
[1726593042783,4.21661,2371.6,2371.1,2.78349973]
[1726593042984,4.21626,2371.8,2371.1,2.78349973]
[1726593043231,4.2164,2371.7,2371.1,2.78349973]
[1726593043384,4.21626,2371.8,2371.1,2.78349973]
[1726593043385,4.21656,2371.6,2371.1,2.78349973]
[1726593043793,4.21656,2371.6,2371.1,2.5304543]
[1726593044220,4.21676,2371.5,2371.2,0.04803386]
[1726593044725,4.21694,2371.4,2371.2,0.04803386]
[1726593045228,4.21668,2371.6,2371.2,0.04803386]
[1726593045229,4.21674,2371.5,2371.2,0.04803386]
[1726593045434,8.43339,2371.6,2371.2,0.04803386]
[1726593045590,8.43337,2371.6,2371.2,0.04803386]
[1726593045790,8.43334,2371.6,2371.2,0.04803386]
[1726593046332,8.43331,2371.6,2371.2,0.04803386]
[1726593046541,14.63588,2372.0,2371.2,0.04803386]
[1726593046542,4.21633,2371.8,2371.3,2.3645]
[1726593046709,8.43266,2371.8,2371.3,2.3645]
[1726593046902,8.43266,2371.8,2371.4,0.04793919]
[1726593047091,4.21641,2371.7,2371.4,0.04793919]
[1726593047292,4.21633,2371.8,2371.4,0.04793919]
[1726593047293,8.43266,2371.8,2371.4,0.04793919]
[1726593047498,4.21644,2371.7,2371.4,0.04793919]
[1726593047702,8.43264,2371.8,2371.4,0.04793919]
[1726593047944,4.21631,2371.8,2371.4,0.04793919]
[1726593048248,10.42,2372.0,2371.4,0.04793919]
[1726593048399,4.21667,2371.6,2371.4,0.04793919]
[1726593048606,8.43335,2371.6,2371.4,0.04793919]
[1726593048910,8.43339,2371.6,2371.4,0.04793919]
[1726593049102,4.21666,2371.6,2371.4,0.04793919]
[1726593049646,8.43334,2371.6,2371.4,0.04793919]
[1726593050211,8.43332,2371.6,2371.4,0.04793919]
[1726593050799,4.21666,2371.6,2371.4,0.04793919]
[1726593051140,4.21674,2371.5,2371.4,0.04793919]
[1726593051310,4.21665,2371.6,2371.4,0.04793919]
[1726593051518,4.21674,2371.5,2371.4,0.04793919]
[1726593051940,4.21691,2371.4,2371.1,0.0397543]
[1726593052141,4.21665,2371.6,2371.1,0.0397543]
[1726593052303,4.21665,2371.6,2371.2,0.04730975]
[1726593053426,8.4333,2371.6,2371.2,0.04730975]
[1726593053602,4.21691,2371.4,2371.2,0.04730975]
[1726593053809,8.43393,2371.4,2371.2,0.04730975]
[1726593054011,4.21691,2371.4,2371.2,0.04730975]
[1726593054907,4.21709,2371.3,2371.2,0.04730975]
[1726593055709,8.43418,2371.3,2371.2,0.04730975]
[1726593055910,14.703998,2371.3,2371.2,0.04730975]
[1726593056109,20.174498,2371.3,2371.2,0.04730975]
[1726593056325,16.20181,2371.2,2371.1,0.0397543]
[1726593056818,25.33770899,2371.2,2371.1,0.0397543]
[1726593057044,25.33770899,2371.2,2370.4,0.0397543]
[1726593057045,8.43697,2370.6,2370.4,0.0397543]
[1726593057251,4.21815,2370.8,2370.4,0.0397543]
[1726593057552,4.21815,2370.8,2370.5,0.04479797]
[1726593057726,4.21809,2370.8,2370.5,0.04479797]
[1726593058121,4.21789,2370.9,2370.5,0.04479797]
[1726593059146,8.43582,2370.9,2370.5,0.04479797]
[1726593059644,8.43655,2370.7,2370.5,0.04479797]
[1726593059845,4.21834,2370.6,2370.5,0.04479797]
[1726593060210,4.21827,2370.7,2370.5,0.04479797]
[1726593060411,4.21834,2370.6,2370.5,0.04479797]
[1726593060821,10.87768,2370.6,2370.5,0.04479797]
[1726593061148,11.73326676,2370.6,2370.5,0.04479797]
[1726593061644,4.21851,2370.5,2370.4,0.0397543]
[1726593062257,4.21851,2370.5,2370.4,0.0846834]
[1726593062439,11.43702,2370.5,2370.4,0.0397543]
[1726593062677,12.91038068,2370.5,2370.4,0.0397543]
[1726593063250,13.46038068,2370.5,2370.4,0.0397543]
[1726593063892,17.67889068,2370.5,2370.4,0.0397543]
[1726593064082,13.46038068,2370.5,2370.4,0.0397543]
[1726593065001,21.89740068,2370.5,2370.4,0.0397543]
[1726593065161,20.13019068,2370.5,2370.4,0.0397543]
[1726593066692,20.56940653,2370.5,2370.4,0.0397543]
[1726593068084,24.78791653,2370.5,2370.4,0.0397543]
[1726593068511,24.78791653,2370.5,2369.7,0.0397543]
[1726593068512,18.09578,2369.8,2369.7,0.0397543]
[1726593068653,22.86554,2369.8,2369.7,0.0397543]
[1726593069069,27.0853,2369.8,2369.7,0.0397543]
[1726593069450,4.22101,2369.1,2369.0,0.0397543]
[1726593069657,11.153821,2369.1,2369.0,0.0397543]
[1726593069951,18.374831,2369.1,2369.0,0.0397543]
[1726593070276,23.145841,2369.1,2369.0,0.0397543]
[1726593070453,18.924831,2369.1,2369.0,0.0397543]
[1726593070648,18.924831,2369.1,2368.2,0.0397543]
[1726593070649,4.22243,2368.3,2368.2,0.0397543]
[1726593070853,11.1919994,2368.3,2368.2,0.0397543]
[1726593071152,2.748343,2368.3,2368.2,0.0397543]
[1726593071349,3.972101,2369.1,2368.2,0.0397543]
[1726593071350,2.3261,2368.7,2368.2,0.0397543]
[1726593071545,2.3261,2368.7,2368.5,4.91862899]
[1726593072310,4.2212,2369.0,2368.5,4.91862899]
[1726593072311,2.3261,2369.0,2368.5,4.91862899]
[1726593072450,2.3261,2369.0,2368.3,4.91862899]
[1726593072645,0.2748201,2368.9,2368.3,4.91862899]
[1726593073191,4.4962401,2368.9,2368.3,4.91862899]
[1726593073350,0.2748201,2368.9,2368.3,4.91862899]
[1726593073547,0.2748201,2368.9,2368.6,4.91862899]
[1726593074195,0.2748201,2368.9,2368.7,0.06376418]
[1726593074372,0.2748201,2368.9,2368.7,0.1313799]
[1726593075297,0.2748201,2368.9,2368.8,0.05062619]
[1726593075499,0.2748201,2368.9,2368.7,0.06376418]
[1726593075652,0.2748201,2368.9,2368.8,0.11666731]
[1726593075848,0.2748201,2368.9,2368.8,0.06368512]
[1726593076053,0.2748201,2368.9,2368.3,4.91862899]
[1726593076293,0.2748201,2368.9,2368.8,0.06368512]
[1726593076786,0.2748201,2368.9,2368.3,4.91862899]
[1726593076987,0.2748201,2368.9,2368.8,0.06368512]
[1726593077193,0.2748201,2368.9,2368.3,4.91862899]
[1726593077398,0.2748201,2368.9,2368.8,0.06368512]
[1726593077694,0.2748201,2368.9,2368.3,4.91862899]
[1726593077893,0.2748201,2368.9,2368.8,0.06368512]
[1726593078251,0.2748201,2368.9,2368.3,4.91862899]
[1726593078598,0.2748201,2368.9,2368.4,0.07507986]
[1726593078892,0.2748201,2368.9,2368.4,0.1335785]
[1726593079964,2.473,2368.8,2368.4,0.1335785]
[1726593080164,2.473,2368.6,2368.4,0.1335785]
[1726593081674,2.473,2368.6,2368.5,0.04514079]
[1726593081999,2.473,2368.6,2368.5,0.0587626]
[1726593082357,2.473,2368.6,2368.3,4.91862899]
[1726593082562,0.07361213,2369.3,2368.4,0.12184363]
[1726593082563,2.253,2369.2,2368.4,0.12184363]
[1726593082753,0.23266121,2369.1,2368.8,4.91862899]
[1726593082952,0.23266121,2369.1,2368.9,0.05860369]
[1726593083605,0.43937365,2369.5,2369.1,4.91862899]
[1726593083817,0.43937365,2369.5,2369.0,0.05853255]
[1726593083993,0.43937365,2369.5,2369.3,4.91862899]
[1726593084470,4.21992,2369.8,2369.3,4.98773798]
[1726593084671,5.0712775,2369.7,2369.3,4.63703764]
[1726593084884,4.66022665,2369.6,2368.2,3.0420768]
[1726593085087,4.22065,2369.3,2368.6,4.91862899]
[1726593085295,4.22084,2369.2,2368.6,4.91862899]
[1726593085501,5.065179,2369.1,2368.6,4.91862899]
[1726593085724,0.55,2369.0,2368.6,4.91862899]
[1726593085870,4.22139,2368.9,2368.3,4.91862899]
[1726593086276,0.55,2368.8,2368.3,4.91862899]
[1726593086476,2.4415,2368.7,2368.3,4.91862899]
[1726593086722,2.4415,2368.5,2368.3,4.91862899]
[1726593088415,2.4415,2368.5,2368.2,0.0420768]
[1726593088616,2.4415,2368.5,2368.2,4.96070579]
[1726593092929,0.8513175,2369.7,2368.2,4.96070579]
[1726593092930,0.43999665,2369.6,2368.2,4.96070579]
[1726593093137,0.43999665,2369.6,2369.4,4.91862899]
[1726593094218,4.21877,2370.4,2369.4,4.91862899]
[1726593094423,4.88084069,2370.6,2369.1,2.2796]
[1726593094424,0.073526,2370.2,2369.1,2.2796]
[1726593094751,0.439029,2370.3,2370.1,4.91862899]
[1726593094963,0.44084472,2370.8,2370.1,4.91862899]
[1726593094964,0.51435963,2370.8,2370.1,4.91862899]
[1726593095106,0.51435963,2370.8,2370.7,4.91862899]
[1726593095107,0.95379395,2370.8,2370.7,4.91862899]
[1726593095305,0.44084472,2370.8,2370.7,4.91862899]
[1726593095508,0.0119442,2371.1,2370.7,4.91862899]
[1726593095809,0.0119442,2371.1,2371.0,4.91862899]
[1726593096031,2.3992442,2371.1,2371.0,4.91862899]
[1726593096242,2.68314963,2371.1,2371.0,4.91862899]
[1726593096446,0.6619733,2371.7,2371.0,4.91862899]
[1726593096668,0.07349032,2371.8,2371.5,4.91862899]
[1726593096873,0.43944593,2371.7,2370.4,3.0]
[1726593097069,0.43944593,2371.7,2371.4,4.91862899]
[1726593097676,0.71590913,2372.1,2371.4,4.1767227]
[1726593097879,0.12749456,2372.1,2371.4,4.1767227]
[1726593098084,0.43944198,2371.8,2371.4,4.1767227]
[1726593098876,0.55,2371.7,2371.4,4.1767227]
[1726593099243,0.55,2371.7,2370.2,6.65172]
[1726593099244,0.55,2371.7,2371.0,4.91862899]
[1726593099440,0.55,2371.5,2371.0,4.91862899]
[1726593099644,0.28683,2371.4,2371.0,4.91862899]
[1726593100887,2.9084,2371.3,2370.7,4.91862899]
[1726593101058,2.9084,2371.3,2370.4,4.91862899]
[1726593101693,2.3584,2371.2,2370.4,4.91862899]
[1726593101896,1.262551,2371.1,2370.4,4.91862899]
[1726593102188,1.262551,2371.1,2370.6,4.91862899]
[1726593102496,2.3146,2370.8,2369.1,2.3394]
[1726593102803,2.3146,2370.8,2370.3,4.91862899]
[1726593106296,4.21774,2371.0,2369.4,2.3394]
[1726593106297,4.21866,2370.5,2369.4,4.91862899]
[1726593106453,2.2568,2370.3,2369.7,4.91862899]
[1726593107591,2.2568,2370.3,2370.0,4.91862899]
[1726593107778,0.28068,2370.2,2370.0,4.91862899]
[1726593107987,0.28068,2370.2,2369.3,4.91862899]
[1726593107988,2.9677,2370.1,2369.3,4.91862899]
[1726593108374,2.4177,2370.1,2369.6,4.91862899]
[1726593108980,2.4177,2370.1,2369.9,4.91862899]
[1726593109170,0.28576891,2370.0,2369.9,4.91862899]
[1726593109609,0.28576891,2370.0,2369.6,4.91862899]
[1726593111089,0.28576891,2370.0,2369.3,4.91862899]
[1726593112215,2.3457,2369.5,2368.6,4.91862899]
[1726593112505,2.3457,2369.5,2368.9,4.91862899]
[1726593112506,0.28957,2369.4,2368.9,4.91862899]
[1726593113424,0.28957,2369.4,2368.6,4.91862899]
[1726593113627,2.3457,2369.3,2368.6,4.91862899]
[1726593116128,2.3457,2369.3,2369.2,4.91862899]
[1726593116421,2.609227,2369.3,2368.9,4.91862899]
[1726593117397,2.609227,2369.3,2368.6,4.91862899]
[1726593117614,0.55,2369.2,2368.5,4.91862899]
[1726593117927,2.3269,2369.1,2368.5,4.91862899]
[1726593118089,0.28769,2369.0,2368.5,4.91862899]
[1726593118691,0.28769,2369.0,2368.4,0.3]
[1726593118885,0.55,2369.0,2368.4,0.3]
[1726593119085,2.3269,2369.0,2368.4,0.3]
[1726593120326,2.3269,2369.0,2368.5,4.91862899]
[1726593120501,2.3269,2369.0,2368.9,4.91862899]
[1726593120701,2.3269,2369.0,2368.6,4.91862899]
[1726593120913,0.23269,2368.9,2368.6,4.91862899]
[1726593121441,0.44103067,2368.8,2368.4,0.3]
[1726593122095,0.44103067,2368.8,2368.6,4.91862899]
[1726593122799,0.44103067,2368.8,2368.7,4.91862899]
[1726593126290,2.88203067,2368.8,2368.7,4.91862899]
[1726593126493,3.17023374,2368.8,2368.4,5.21862899]
[1726593126796,0.55,2368.7,2368.4,0.3]
[1726593126995,2.441,2368.6,2368.4,0.3]
[1726593127242,0.2991,2368.5,2368.4,0.3]
[1726593127533,0.2991,2368.5,2368.2,0.054021]
[1726593127534,2.441,2368.3,2368.2,0.054021]
[1726593129036,2.46714818,2368.8,2368.2,0.054021]
[1726593129037,2.4984,2368.7,2368.2,0.054021]
[1726593129193,0.72923374,2368.8,2368.6,4.91862899]
[1726593131831,0.72923374,2368.8,2368.3,3.0]
[1726593132137,0.72923374,2368.8,2368.7,4.91862899]
[1726593133149,0.72923374,2368.8,2368.7,4.93150439]
[1726593136538,0.44103067,2368.8,2368.7,4.93150439]
[1726593137633,2.697627,2369.3,2369.2,4.91862899]
[1726593140916,0.263527,2369.3,2369.2,4.91862899]
[1726593141218,2.6945536,2369.7,2369.2,4.91862899]
[1726593141836,4.43246804,2369.7,2369.2,4.91862899]
[1726593142223,4.43246804,2369.7,2369.6,4.91862899]
[1726593142423,2.621,2369.7,2369.6,4.91862899]
[1726593143216,2.17893715,2369.9,2369.6,4.91862899]
[1726593143417,0.68664862,2369.8,2369.6,4.91862899]
[1726593144114,0.44102271,2369.9,2369.6,4.91862899]
[1726593146240,0.44102271,2369.9,2369.2,5.4461]
[1726593146560,0.44102271,2369.9,2369.8,4.91862899]
[1726593148279,2.6323,2370.2,2369.8,4.91862899]
[1726593148434,2.65863545,2370.4,2370.1,4.91862899]
[1726593148635,0.30983923,2370.3,2370.1,4.91862899]
[1726593148937,2.46847468,2370.4,2370.1,4.91862899]
[1726593149142,0.07352122,2370.9,2370.1,4.91862899]
[1726593149339,0.51259383,2370.9,2370.8,4.91862899]
[1726593149739,0.07352122,2370.9,2370.8,4.91862899]
[1726593149944,0.0265599,2371.1,2370.8,4.91862899]
[1726593151460,0.5765599,2371.1,2370.8,4.91862899]
[1726593151837,2.5067,2371.0,2370.8,4.91862899]
[1726593152047,0.30832599,2370.9,2370.8,4.91862899]
[1726593153748,0.30832599,2370.9,2370.5,4.91862899]
[1726593156776,0.30832599,2370.9,2370.5,4.58862899]
[1726593160382,0.55,2370.8,2370.5,4.58862899]
[1726593160881,0.98902645,2370.8,2370.5,4.58862899]
[1726593161460,0.98902645,2370.8,2370.1,3.0]
[1726593161461,0.98902645,2370.8,2370.2,4.91862899]
[1726593161953,0.98902645,2370.8,2369.0,4.22105]
[1726593161954,0.55,2370.6,2369.9,4.91862899]
[1726593162848,0.55,2370.6,2369.7,2.6201]
[1726593163060,2.4886,2370.5,2369.7,2.6201]
[1726593163444,2.4886,2370.5,2369.8,3.0]
[1726593163445,1.74982334,2370.2,2369.8,3.0]
[1726593163652,1.74982334,2370.3,2369.9,4.91862899]
[1726593164273,2.05368334,2370.4,2369.9,4.91862899]
[1726593164637,2.05368334,2370.4,2370.2,4.91862899]
[1726593164836,0.67295625,2370.3,2370.2,4.91862899]
[1726593165180,0.67295625,2370.3,2369.4,4.22042]
[1726593165181,1.74982334,2370.6,2370.3,2.4138]
[1726593165386,1.74982334,2370.6,2370.4,4.91862899]
[1726593165566,1.74982334,2370.5,2370.1,7.91862899]
[1726593165774,1.74982334,2370.6,2370.1,7.91862899]
[1726593166081,0.39371025,2370.5,2370.1,7.91862899]
[1726593166451,0.83471945,2370.5,2370.4,4.91862899]
[1726593166985,0.83471945,2370.5,2370.4,7.49072899]
[1726593167292,0.4410092,2370.5,2370.4,7.49072899]
[1726593167987,0.4410092,2370.5,2370.1,5.6608]
[1726593168367,4.81283254,2370.5,2369.8,2.6608]
[1726593168570,1.74982334,2370.4,2369.9,3.0]
[1726593168784,1.74982334,2370.3,2369.9,3.0]
[1726593169079,2.66856243,2370.4,2369.8,2.6608]
[1726593169080,2.23110659,2370.4,2369.8,2.6608]
[1726593169589,1.74982334,2370.3,2369.8,2.6608]
[1726593169747,0.22311066,2370.2,2369.8,2.6608]
[1726593170440,0.22311066,2370.2,2370.0,4.91862899]
[1726593171254,0.48128325,2370.4,2370.0,4.91862899]
[1726593172582,2.5337,2370.2,2369.8,3.0]
[1726593172779,4.28352334,2370.2,2369.8,3.0]
[1726593172991,4.28352334,2370.2,2369.6,2.6544]
[1726593173141,4.28352334,2370.2,2369.4,4.91862899]
[1726593173142,1.74982334,2370.1,2369.4,4.91862899]
[1726593173342,2.39681709,2370.0,2369.4,4.91862899]
[1726593173570,1.74982334,2369.9,2369.4,4.91862899]
[1726593174479,1.74982334,2369.8,2369.5,3.0]
[1726593174844,1.74982334,2369.8,2369.7,4.91862899]
[1726593175156,2.20814647,2369.8,2369.7,4.91862899]
[1726593177484,2.64804589,2369.8,2369.7,4.91862899]
[1726593178755,2.64804589,2369.8,2369.4,7.91862899]
[1726593178959,1.75311597,2369.7,2369.4,7.91862899]
[1726593179599,1.75311597,2369.6,2369.4,7.91862899]
[1726593180763,1.75311597,2369.7,2369.4,7.91862899]
[1726593180967,0.44022744,2369.6,2369.4,7.91862899]
[1726593181172,2.19334341,2369.6,2369.4,7.91862899]
[1726593181495,1.75311597,2369.5,2369.1,4.91862899]
[1726593181690,1.75317996,2369.4,2369.1,4.91862899]
[1726593181871,1.75317996,2369.4,2369.0,2.4344]
[1726593182087,1.75317996,2369.2,2368.9,0.0128754]
[1726593182293,1.75317996,2369.1,2368.9,0.0128754]
[1726593183176,1.75317996,2369.1,2368.9,3.0128754]
[1726593183378,1.75317996,2369.0,2368.9,3.0128754]
[1726593183901,1.75317996,2369.0,2368.9,0.0128754]
[1726593184071,2.14758149,2369.0,2368.9,0.0128754]
[1726593185313,2.58635447,2369.0,2368.9,0.0128754]
[1726593185454,3.48690153,2369.0,2368.9,0.0128754]
[1726593186159,6.9942443,2369.0,2368.9,0.0128754]
[1726593186481,6.00583932,2369.0,2368.9,0.0128754]
[1726593186733,5.56655047,2369.0,2368.9,0.0128754]
[1726593187206,3.92518236,2369.0,2368.9,0.0128754]
[1726593187490,6.11546667,2369.0,2368.9,0.0128754]
[1726593187892,6.11536148,2369.0,2368.9,0.0128754]
[1726593188092,6.1143251,2369.0,2368.9,0.0128754]
[1726593188395,6.55281083,2369.0,2368.9,0.0128754]
[1726593188692,6.11454734,2369.0,2368.9,0.0128754]
[1726593189855,5.56454734,2369.0,2368.9,0.0128754]
[1726593190152,2.93690153,2369.0,2368.9,0.0128754]
[1726593190597,2.58300977,2369.0,2368.9,0.0128754]
[1726593190985,0.88130687,2369.6,2368.9,0.0128754]
[1726593190986,1.75090812,2369.1,2368.9,0.0128754]
[1726593193172,1.75090812,2369.0,2368.9,0.0128754]
[1726593194108,1.74988538,2369.0,2368.9,0.0128754]
[1726593194267,4.74183792,2369.1,2368.9,0.0128754]
[1726593194597,0.47418379,2369.0,2368.9,0.0128754]
[1726593194775,2.22375751,2369.0,2368.9,0.0128754]
[1726593195203,1.74957372,2369.1,2368.9,0.0128754]
[1726593196863,0.44110822,2369.1,2369.0,2.5179]
[1726593197366,0.44110822,2369.1,2369.0,5.5179]
[1726593198867,2.18557279,2369.5,2369.2,4.91862899]
[1726593199068,0.51001002,2369.4,2369.2,4.91862899]
[1726593199513,2.69558281,2369.4,2369.2,4.91862899]
[1726593199872,2.69558281,2369.4,2368.9,4.93150439]
[1726593200182,2.18557279,2369.3,2368.9,4.93150439]
[1726593201578,2.18557279,2369.2,2368.9,4.93150439]
[1726593201781,2.5727,2369.1,2368.9,0.0128754]
[1726593202003,4.75827279,2369.1,2368.9,0.0128754]
[1726593202181,4.75827279,2369.1,2368.9,4.93150439]
[1726593202182,2.18557279,2369.1,2368.9,4.93150439]
[1726593202388,2.49884253,2369.3,2368.9,4.93150439]
[1726593202566,0.38840721,2369.2,2368.9,4.93150439]
[1726593202771,2.49884253,2369.3,2368.9,4.93150439]
[1726593203009,2.18557279,2369.3,2369.2,4.91862899]
[1726593203224,2.1845383,2369.4,2369.2,4.91862899]
[1726593203385,2.62144596,2369.8,2369.2,4.91862899]
[1726593203570,5.18884596,2370.0,2369.5,4.91862899]
[1726593203777,5.18884596,2370.0,2369.0,2.4115]
[1726593203778,0.5188846,2369.9,2369.0,2.4115]
[1726593203982,5.18884596,2370.0,2369.9,4.91862899]
[1726593204198,3.49943561,2370.2,2369.9,4.91862899]
[1726593204199,2.62144596,2370.1,2369.9,4.91862899]
[1726593204471,5.62992795,2370.2,2369.9,4.91862899]
[1726593204920,2.62144596,2370.1,2369.9,4.91862899]
[1726593205074,0.5629928,2370.0,2369.9,4.91862899]
[1726593206197,3.18443876,2370.0,2369.9,4.91862899]
[1726593207009,0.5629928,2370.0,2369.9,4.91862899]
[1726593207772,2.62144596,2370.1,2369.9,4.91862899]
[1726593207980,2.62144596,2370.1,2370.0,5.4715]
[1726593207981,1.75046837,2370.1,2370.0,5.4715]
[1726593208225,1.75046837,2370.2,2370.0,5.4715]
[1726593208518,1.75046837,2370.3,2370.1,4.91862899]
[1726593208674,1.75046837,2370.3,2370.2,4.91862899]
[1726593208881,2.62551469,2370.6,2370.2,4.91862899]
[1726593209177,2.88806616,2370.5,2370.2,4.91862899]
[1726593209717,0.26255147,2370.5,2370.2,4.91862899]
[1726593209922,2.88806616,2370.5,2370.2,4.91862899]
[1726593210211,2.62551469,2370.6,2370.2,4.91862899]
[1726593210379,2.18807259,2370.3,2370.2,4.91862899]
[1726593212705,2.18871916,2370.3,2370.2,4.91862899]
[1726593213422,1.75133114,2370.3,2370.2,4.91862899]
[1726593216546,2.18871916,2370.4,2370.3,2.4992]
[1726593216829,3.06420683,2370.9,2370.6,4.91862899]
[1726593216830,2.62646299,2370.9,2370.6,4.91862899]
[1726593217032,2.62646299,2371.0,2370.6,4.91862899]
[1726593217189,2.5824599,2371.1,2370.6,4.91862899]
[1726593217190,0.52089229,2370.9,2370.6,4.91862899]
[1726593217391,5.20892289,2371.1,2370.6,4.91862899]
[1726593217392,0.0265599,2371.1,2370.6,4.91862899]
[1726593217613,0.0265599,2371.1,2371.0,4.91862899]
[1726593217990,0.0265599,2371.1,2371.0,4.00250742]
[1726593218199,0.0265599,2371.1,2371.0,7.00250742]
[1726593218838,2.66751134,2371.8,2371.1,3.0]
[1726593219034,2.66751134,2371.8,2371.6,4.00250742]
[1726593219035,0.0394353,2371.8,2371.6,4.00250742]
[1726593219541,5.62495747,2372.0,2371.7,2.5505]
[1726593219542,0.44098143,2372.0,2371.7,2.5505]
[1726593219840,3.10552401,2372.5,2371.7,2.5505]
[1726593219841,2.66751134,2372.5,2371.9,4.00250742]
[1726593220141,0.44114396,2372.1,2371.9,4.92276518]
[1726593220438,0.0394353,2372.5,2371.9,4.92276518]
[1726593220636,0.44112666,2372.1,2371.9,4.92276518]
[1726593221048,0.0394353,2372.5,2371.9,4.92276518]
[1726593221346,0.44112109,2372.1,2371.9,4.92276518]
[1726593221495,0.0394353,2372.5,2372.0,3.0]
[1726593221701,0.0394353,2372.5,2372.4,4.92276518]
[1726593222444,0.48055418,2372.5,2372.4,4.92276518]
[1726593222742,0.48055418,2372.5,2372.4,7.47326518]
[1726593222909,0.48055418,2372.5,2372.4,10.9655417]
[1726593222910,0.0394353,2372.5,2372.4,10.9655417]
[1726593223751,0.0394353,2372.5,2372.4,10.47326518]
[1726593228229,0.0394353,2373.2,2372.4,12.84553036]
[1726593228437,0.0394353,2373.2,2373.1,4.92276518]
[1726593231825,0.0394353,2373.2,2372.9,3.0]
[1726593232535,0.0394353,2373.2,2372.7,2.454]
[1726593232536,0.0394353,2373.2,2373.1,4.92276518]
[1726593232852,0.0394353,2373.2,2372.9,3.0]
[1726593233007,0.0394353,2373.2,2373.1,4.92276518]
[1726593233209,0.0394353,2373.2,2373.1,7.37676518]
[1726593237008,0.48055357,2373.2,2373.1,10.37676518]
[1726593237754,0.0394353,2373.2,2373.1,10.37676518]
[1726593241764,0.0394353,2373.2,2373.1,14.59065518]
[1726593241937,0.0394353,2373.2,2373.1,13.66236507]
[1726593242153,0.0394353,2373.2,2373.1,17.87625507]
[1726593242452,0.0394353,2373.2,2373.1,13.66236507]
[1726593243772,0.0394353,2373.2,2373.1,9.44847507]
[1726593244075,0.0394353,2373.2,2373.1,6.44847507]
[1726593245270,0.0394353,2373.2,2373.1,7.09332258]
[1726593245476,0.0394353,2373.2,2373.1,10.09332258]
[1726593245773,0.0394353,2373.2,2373.1,14.30721258]
[1726593245969,0.0394353,2373.9,2373.1,14.30721258]
[1726593245970,0.0394353,2373.9,2373.4,2.5782]
[1726593246177,0.0394353,2373.9,2373.5,3.0]
[1726593247235,0.0178502,2373.9,2373.5,3.0]
[1726593249569,0.0178502,2373.9,2373.2,2.5359]
[1726593249570,2.7093,2373.8,2373.2,2.5359]
[1726593249754,2.7093,2373.8,2372.9,2.5359]
[1726593249954,0.27271502,2373.7,2373.1,4.9148969]
[1726593250272,0.29056522,2373.7,2373.1,4.9148969]
[1726593250992,0.29056522,2373.7,2373.2,3.0]
[1726593252382,0.0178502,2373.7,2373.2,3.0]
[1726593257799,0.0178502,2373.7,2372.8,3.0]
[1726593257800,2.5989,2373.6,2372.8,3.0]
[1726593258124,0.0178502,2373.7,2372.4,0.6]
[1726593258125,2.5989,2373.4,2372.4,0.6]
[1726593258283,2.5989,2373.2,2372.4,0.6]
[1726593259106,2.5989,2373.2,2372.6,4.9148969]
[1726593259483,2.5989,2373.2,2372.6,3.0]
[1726593259792,0.25989,2373.1,2372.6,3.0]
[1726593263282,0.25989,2373.1,2372.4,0.6]
[1726593263503,2.74,2373.0,2372.4,0.6]
[1726593264077,3.29,2373.0,2372.4,0.6]
[1726593264399,4.30226084,2372.8,2372.4,0.6]
[1726593264914,2.562,2372.8,2372.4,0.6]
[1726593265306,4.30226084,2372.8,2372.4,0.6]
[1726593265485,1.09039728,2372.7,2372.4,0.6]
[1726593266178,2.83065812,2372.7,2372.4,0.6]
[1726593267118,1.74026084,2372.6,2372.4,0.6]
[1726593267409,0.44113971,2372.7,2372.4,0.6]
[1726593268404,2.18140055,2372.7,2372.4,0.6]
[1726593268596,2.8747721,2372.7,2372.4,0.6]
[1726593269087,1.74026084,2372.6,2372.4,0.6]
[1726593269987,1.74026084,2372.5,2372.4,0.6]
[1726593270919,4.38516084,2372.5,2372.4,0.6]
[1726593271135,2.6449,2372.5,2372.4,0.6]
[1726593271278,4.99860741,2372.5,2372.4,0.6]
[1726593271478,4.99835098,2372.5,2372.4,0.6]
[1726593272214,5.43853837,2372.5,2372.4,0.6]
[1726593272925,3.24244997,2372.5,2372.4,0.6]
[1726593273122,5.43853837,2372.5,2372.4,0.6]
[1726593273325,3.24244997,2372.5,2372.4,0.6]